bitfinex-derivatives/quotes_BTCF0:USTF0_20241013
["timestamp","ask_amount","ask_price","bid_price","bid_amount"]
[1728842671721,1.092907,62488.0,62487.0,0.003]
[1728842673221,0.922907,62488.0,62487.0,0.003]
[1728842673410,1.092907,62488.0,62487.0,0.003]
[1728842674919,1.522907,62488.0,62487.0,0.003]
[1728842675116,0.252027,62488.0,62487.0,0.083028]
[1728842675317,0.252027,62488.0,62487.0,0.14675531]
[1728842676013,0.252027,62488.0,62487.0,0.083028]
[1728842676215,0.612827,62488.0,62487.0,0.003]
[1728842676419,1.692907,62488.0,62487.0,0.003]
[1728842677423,1.692907,62488.0,62478.0,0.3645]
[1728842677424,0.080038,62479.0,62478.0,0.3645]
[1728842677720,0.250038,62479.0,62478.0,0.3608]
[1728842678317,0.420038,62479.0,62478.0,0.3608]
[1728842678723,0.420038,62479.0,62478.0,0.44084]
[1728842678921,0.421038,62479.0,62478.0,0.44184]
[1728842679522,0.422038,62479.0,62478.0,0.08104]
[1728842680026,0.252038,62479.0,62478.0,0.08104]
[1728842680412,0.252038,62479.0,62478.0,0.08004]
[1728842682119,0.002,62479.0,62478.0,0.08004]
[1728842683530,0.082038,62479.0,62478.0,0.08004]
[1728842686929,0.082038,62479.0,62478.0,0.10935129]
[1728842688028,0.02893066,62483.0,62478.0,0.37691535]
[1728842688232,0.080036,62481.0,62479.0,0.12199011]
[1728842688426,0.080038,62479.0,62478.0,0.10935129]
[1728842688626,0.080038,62479.0,62478.0,0.37692493]
[1728842689317,0.080038,62479.0,62478.0,0.37604604]
[1728842689528,0.080038,62479.0,62478.0,0.23134167]
[1728842690230,0.081038,62479.0,62478.0,0.23134167]
[1728842691834,0.191038,62479.0,62478.0,0.23134167]
[1728842692335,0.191038,62479.0,62478.0,0.20145602]
[1728842694341,0.191038,62479.0,62478.0,0.12141602]
[1728842695035,0.191038,62479.0,62471.0,0.47677173]
[1728842695036,0.191038,62479.0,62476.0,0.080042]
[1728842695234,0.190041,62477.0,62476.0,0.080042]
[1728842696633,0.191041,62477.0,62476.0,0.081042]
[1728842697134,0.192041,62477.0,62476.0,0.081042]
[1728842699332,0.30246075,62477.0,62476.0,0.081042]
[1728842700632,0.192041,62477.0,62476.0,0.081042]
[1728842700825,0.23124249,62477.0,62476.0,0.001]
[1728842703040,0.192041,62477.0,62476.0,0.26757736]
[1728842703831,0.082041,62477.0,62476.0,0.26757736]
[1728842704034,0.192041,62477.0,62476.0,0.26757736]
[1728842704937,0.192041,62477.0,62476.0,0.34761936]
[1728842705133,0.192041,62477.0,62476.0,0.26757736]
[1728842706636,0.192041,62477.0,62476.0,0.34761936]
[1728842708542,0.192041,62477.0,62476.0,0.26757736]
[1728842709447,0.302041,62477.0,62476.0,0.26757736]
[1728842709745,0.302041,62477.0,62476.0,0.26795417]
[1728842710242,0.080047,62472.0,62471.0,0.00240124]
[1728842710738,0.22,62474.0,62465.0,0.04804365]
[1728842711053,0.22,62474.0,62464.0,0.04804365]
[1728842711054,0.080056,62465.0,62464.0,0.04804365]
[1728842711231,0.08006,62463.0,62462.0,0.080059]
[1728842711546,0.19006,62463.0,62462.0,0.12810265]
[1728842712136,0.19006,62463.0,62462.0,0.080059]
[1728842712940,0.080061,62461.0,62458.0,0.080064]
[1728842713147,0.300064,62459.0,62458.0,0.12803927]
[1728842713455,0.300064,62459.0,62458.0,0.080064]
[1728842713943,0.190064,62459.0,62458.0,0.080064]
[1728842714340,0.4427,62463.0,62458.0,0.080064]
[1728842714341,0.36164,62463.0,62462.0,0.08006]
[1728842714537,0.3608,62463.0,62462.0,0.19006]
[1728842715452,0.3608,62463.0,62462.0,0.08006]
[1728842715751,0.3618,62463.0,62462.0,0.08006]
[1728842715947,0.001,62463.0,62462.0,0.08006]
[1728842716139,0.001,62463.0,62462.0,0.19006]
[1728842716450,0.0037,62470.0,62462.0,0.67034]
[1728842716639,0.57394,62478.0,62472.0,0.080047]
[1728842716640,0.0037,62473.0,62472.0,0.080047]
[1728842716836,0.11,62473.0,62472.0,0.080047]
[1728842717953,0.17,62473.0,62472.0,0.080047]
[1728842718248,0.07387495,62473.0,62472.0,0.080047]
[1728842718648,0.07487495,62473.0,62472.0,0.080047]
[1728842718945,0.07487495,62473.0,62472.0,0.1761343]
[1728842719449,0.07587495,62473.0,62472.0,0.1771343]
[1728842720151,0.002,62473.0,62472.0,0.081047]
[1728842720353,0.002,62473.0,62472.0,0.283047]
[1728842720552,0.0689,62488.0,62481.0,0.080036]
[1728842720743,0.0037,62490.0,62485.0,0.08003]
[1728842721053,0.17,62486.0,62485.0,0.15991141]
[1728842721351,0.250029,62486.0,62485.0,0.15991141]
[1728842721546,0.17,62486.0,62485.0,0.15991141]
[1728842721945,0.250029,62486.0,62485.0,0.15991141]
[1728842722551,0.255029,62486.0,62485.0,0.15991141]
[1728842723347,0.262029,62486.0,62485.0,0.15991141]
[1728842724046,0.256029,62486.0,62485.0,0.08003]
[1728842724752,0.254029,62486.0,62485.0,0.08003]
[1728842724951,0.254029,62486.0,62485.0,0.08103]
[1728842725260,0.32414489,62486.0,62485.0,0.08103]
[1728842725550,0.32014489,62486.0,62485.0,0.08103]
[1728842727354,0.07011589,62486.0,62485.0,0.25003]
[1728842727559,0.12639276,62486.0,62485.0,0.08103]
[1728842727755,0.1965067,62486.0,62485.0,0.08103]
[1728842728253,0.27652167,62486.0,62485.0,0.08103]
[1728842728551,0.15014294,62486.0,62485.0,0.08103]
[1728842728754,0.15014457,62486.0,62485.0,0.001]
[1728842728953,1.2793963,62486.0,62479.0,0.3608]
[1728842729151,0.250037,62480.0,62479.0,0.440838]
[1728842729349,0.44651702,62480.0,62479.0,0.440838]
[1728842729656,0.51511702,62480.0,62479.0,0.080038]
[1728842729846,0.30871557,62480.0,62472.0,0.00240083]
[1728842730048,0.28056605,62474.0,62473.0,0.080046]
[1728842730247,0.31148406,62474.0,62473.0,0.080046]
[1728842730566,0.32016504,62474.0,62473.0,0.080046]
[1728842730852,0.39153208,62474.0,62473.0,0.080046]
[1728842731452,0.31148708,62474.0,62473.0,0.080046]
[1728842731647,0.31248708,62474.0,62473.0,0.082046]
[1728842732353,0.31249251,62474.0,62473.0,0.082046]
[1728842732552,0.39353751,62474.0,62473.0,0.084046]
[1728842733148,0.252045,62474.0,62473.0,0.20287872]
[1728842733851,0.172,62474.0,62473.0,0.20287872]
[1728842734059,0.002,62474.0,62473.0,0.20287872]
[1728842735458,0.002,62474.0,62473.0,0.20282668]
[1728842736450,0.082045,62474.0,62473.0,0.20282668]
[1728842736760,0.252045,62474.0,62473.0,0.20282668]
[1728842737059,0.252045,62474.0,62473.0,0.12278068]
[1728842737458,0.280832,62474.0,62473.0,0.20262178]
[1728842737652,0.280832,62474.0,62473.0,0.0838411]
[1728842738257,0.280832,62474.0,62473.0,0.004]
[1728842738455,0.280832,62474.0,62473.0,0.0838411]
[1728842739157,0.280832,62474.0,62473.0,0.004]
[1728842740760,0.110832,62474.0,62473.0,0.084046]
[1728842741853,0.082045,62474.0,62473.0,0.084046]
[1728842742259,0.252045,62474.0,62473.0,0.084046]
[1728842742758,0.002,62474.0,62473.0,0.1638871]
[1728842743060,0.002,62474.0,62473.0,0.56371347]
[1728842743659,0.002,62474.0,62473.0,0.20291347]
[1728842744061,0.002,62474.0,62473.0,0.56371347]
[1728842744255,0.002,62474.0,62473.0,0.34447145]
[1728842744459,0.002,62474.0,62473.0,0.20291347]
[1728842746363,0.002,62474.0,62473.0,0.20282137]
[1728842746957,0.002,62474.0,62473.0,0.34441928]
[1728842747560,0.002,62474.0,62473.0,0.20282137]
[1728842748159,0.002,62474.0,62473.0,0.084046]
[1728842752373,0.002,62474.0,62469.0,0.11515736]
[1728842752669,0.002,62474.0,62468.0,0.26569445]
[1728842752861,0.002,62474.0,62473.0,0.080046]
[1728842753974,0.001,62474.0,62473.0,0.080046]
[1728842754161,0.002,62474.0,62473.0,0.080046]
[1728842754767,0.001,62474.0,62473.0,0.080046]
[1728842754967,0.001,62474.0,62473.0,0.082046]
[1728842755275,0.17,62478.0,62473.0,0.09445672]
[1728842755454,0.17,62478.0,62477.0,0.09596349]
[1728842755660,0.17,62478.0,62469.0,0.24771126]
[1728842756269,0.0200254,62477.0,62468.0,0.40695153]
[1728842756470,0.3608,62473.0,62472.0,0.080046]
[1728842756968,0.3808254,62473.0,62472.0,0.080046]
[1728842757468,0.3808254,62473.0,62467.0,0.17]
[1728842757668,0.0200254,62472.0,62469.0,0.080051]
[1728842757969,0.1300254,62472.0,62471.0,0.080049]
[1728842758368,0.1300254,62472.0,62470.0,0.11]
[1728842758369,0.1300254,62472.0,62470.0,0.02183237]
[1728842758564,0.0200254,62472.0,62471.0,0.080049]
[1728842758769,0.001,62473.0,62471.0,0.190049]
[1728842758967,0.001,62473.0,62472.0,0.080047]
[1728842760272,0.001,62472.0,62465.0,0.29613285]
[1728842760464,0.001,62472.0,62471.0,0.19079312]
[1728842760659,0.001,62472.0,62471.0,0.2138215]
[1728842761068,0.002,62473.0,62472.0,0.080047]
[1728842761274,0.002,62473.0,62472.0,0.1038197]
[1728842761768,0.001,62473.0,62472.0,0.1038197]
[1728842762673,0.001,62473.0,62472.0,0.1048197]
[1728842763168,0.32175057,62474.0,62472.0,0.0247727]
[1728842763472,0.32175057,62474.0,62473.0,0.080046]
[1728842764274,0.36168,62479.0,62478.0,0.08004]
[1728842764466,0.36168,62479.0,62478.0,0.19004]
[1728842764975,0.3608,62479.0,62478.0,0.19004]
[1728842765474,0.3608,62479.0,62478.0,0.32684868]
[1728842766271,0.4708,62483.0,62482.0,0.080035]
[1728842767864,0.550833,62483.0,62482.0,0.080035]
[1728842768075,0.555833,62483.0,62482.0,0.080035]
[1728842769169,0.4788,62483.0,62482.0,0.080035]
[1728842770077,0.558833,62483.0,62482.0,0.080035]
[1728842770269,0.58975234,62483.0,62482.0,0.080035]
[1728842772077,0.008,62483.0,62482.0,0.080035]
[1728842772263,0.008,62483.0,62482.0,0.10928097]
[1728842772781,0.008,62483.0,62482.0,0.1323053]
[1728842773667,0.008,62483.0,62482.0,0.2423053]
[1728842774179,0.008,62483.0,62482.0,0.1323053]
[1728842774677,0.008,62483.0,62482.0,0.11728924]
[1728842774883,0.008,62483.0,62482.0,0.13230475]
[1728842775268,0.008,62483.0,62482.0,0.24230475]
[1728842775477,0.008,62483.0,62482.0,0.23229441]
[1728842776373,0.008,62483.0,62482.0,1.31241441]
[1728842776580,0.008,62483.0,62482.0,1.32242426]
[1728842777279,0.008,62483.0,62482.0,1.31241441]
[1728842777471,0.008,62483.0,62482.0,1.20241441]
[1728842777779,0.008,62483.0,62482.0,0.60241441]
[1728842777979,0.003,62483.0,62482.0,0.60441441]
[1728842778283,0.00610131,62491.0,62488.0,0.080027]
[1728842778480,0.00240131,62491.0,62488.0,0.29001246]
[1728842778679,0.00240131,62491.0,62488.0,0.19419897]
[1728842779780,0.3618,62489.0,62488.0,0.19419897]
[1728842780874,0.3628,62489.0,62488.0,0.19619897]
[1728842781184,0.002,62489.0,62488.0,0.19619897]
[1728842785186,0.00240131,62491.0,62488.0,0.11617197]
[1728842785378,0.00240131,62491.0,62490.0,0.080024]
[1728842787475,0.00340131,62491.0,62490.0,0.083024]
[1728842788081,0.00240131,62491.0,62490.0,0.083024]
[1728842790879,0.00240131,62491.0,62490.0,0.12502044]
[1728842791079,0.00240131,62491.0,62490.0,0.11200795]
[1728842792786,0.00240131,62491.0,62490.0,0.12502026]
[1728842793283,0.00240131,62491.0,62490.0,0.23906528]
[1728842793591,0.3608,62494.0,62493.0,0.08002]
[1728842793592,0.26320131,62494.0,62493.0,0.08002]
[1728842793884,0.190015,62498.0,62497.0,0.080015]
[1728842795485,0.080017,62496.0,62494.0,0.07984977]
[1728842795692,0.190018,62495.0,62494.0,0.080019]
[1728842796481,0.190018,62495.0,62494.0,0.15986877]
[1728842797684,0.190018,62495.0,62494.0,0.27399236]
[1728842797991,0.190018,62495.0,62494.0,0.15986877]
[1728842798385,0.190018,62495.0,62494.0,0.2740132]
[1728842798687,0.190018,62495.0,62494.0,0.19416343]
[1728842799185,0.191018,62495.0,62494.0,0.19416343]
[1728842800189,0.191018,62495.0,62494.0,0.19418975]
[1728842800493,0.22193096,62495.0,62494.0,0.080019]
[1728842801491,0.33250003,62495.0,62494.0,0.080019]
[1728842801693,0.22250003,62495.0,62494.0,0.080019]
[1728842802186,0.11193096,62495.0,62494.0,0.080019]
[1728842803183,0.03191296,62495.0,62494.0,0.080019]
[1728842804893,0.03191261,62495.0,62494.0,0.080019]
[1728842808389,0.441656,62497.0,62495.0,0.080017]
[1728842808588,0.440816,62497.0,62496.0,0.11430832]
[1728842809189,0.080016,62497.0,62496.0,0.11430832]
[1728842809388,0.440816,62497.0,62496.0,0.11430015]
[1728842809591,0.441816,62497.0,62496.0,0.19431715]
[1728842810286,0.444816,62497.0,62496.0,0.19431715]
[1728842810997,0.445816,62497.0,62496.0,0.19431715]
[1728842812387,0.085016,62497.0,62496.0,0.19431715]
[1728842812587,0.445816,62497.0,62496.0,0.19431715]
[1728842814195,0.445816,62497.0,62496.0,0.19433091]
[1728842815298,0.445816,62497.0,62496.0,0.080017]
[1728842815492,0.47672867,62497.0,62496.0,0.080017]
[1728842816288,0.51591776,62497.0,62496.0,0.080017]
[1728842817502,0.6422793,62497.0,62496.0,0.080017]
[1728842817893,0.51591776,62497.0,62496.0,0.080017]
[1728842818991,0.51591779,62497.0,62496.0,0.080017]
[1728842820595,0.15511779,62497.0,62496.0,0.080017]
[1728842821105,0.51591779,62497.0,62496.0,0.080017]
[1728842821496,0.15511779,62497.0,62496.0,0.080017]
[1728842821802,0.51591779,62497.0,62496.0,0.080017]
[1728842822008,0.15511779,62497.0,62496.0,0.080017]
[1728842822197,0.51591761,62497.0,62496.0,0.080017]
[1728842822397,0.15511761,62497.0,62496.0,0.080017]
[1728842822696,0.51591761,62497.0,62496.0,0.080017]
[1728842823406,0.445816,62497.0,62496.0,0.19433897]
[1728842824507,0.445816,62497.0,62496.0,0.29015246]
[1728842825905,0.445816,62497.0,62496.0,0.19433897]
[1728842826907,0.445816,62497.0,62496.0,0.29041363]
[1728842829606,0.445816,62497.0,62496.0,0.19433897]
[1728842831517,0.445816,62497.0,62496.0,0.29041363]
[1728842831518,0.555816,62497.0,62496.0,0.29041363]
[1728842831813,0.555816,62497.0,62496.0,0.19433897]
[1728842832010,0.555816,62497.0,62496.0,0.11432197]
[1728842838509,0.555816,62497.0,62494.0,0.080019]
[1728842838510,0.080018,62495.0,62494.0,0.080019]
[1728842838822,0.15012004,62495.0,62494.0,0.080019]
[1728842839925,0.15112004,62495.0,62494.0,0.080019]
[1728842841024,0.20024113,62495.0,62494.0,0.080019]
[1728842843529,0.34316287,62495.0,62494.0,0.080019]
[1728842844317,0.15112004,62495.0,62494.0,0.080019]
[1728842845429,0.081018,62495.0,62494.0,0.29045533]
[1728842850835,0.081018,62495.0,62494.0,0.19438067]
[1728842851724,0.081018,62495.0,62494.0,0.29045533]
[1728842852933,0.081018,62495.0,62494.0,0.19438067]
[1728842853931,0.001,62495.0,62494.0,0.30438067]
[1728842854123,0.3608,62497.0,62494.0,0.22436167]
[1728842854329,0.3608,62497.0,62496.0,0.080017]
[1728842854633,0.3608,62497.0,62496.0,0.19437867]
[1728842855033,0.3608,62497.0,62496.0,0.19432886]
[1728842855433,0.3608,62497.0,62496.0,0.40038895]
[1728842855629,0.003,62497.0,62496.0,0.80110601]
[1728842855937,0.3608,62505.0,62496.0,0.80110601]
[1728842855938,0.3608,62505.0,62502.0,0.080009]
[1728842856140,0.3608,62505.0,62504.0,0.080006]
[1728842856436,0.3608,62505.0,62504.0,0.29018361]
[1728842856821,0.083699,62510.0,62509.0,0.08]
[1728842856822,0.0037,62510.0,62509.0,0.08]
[1728842857028,0.0037,62514.0,62513.0,0.079995]
[1728842857228,0.00240058,62516.0,62513.0,0.38409537]
[1728842857429,0.00240058,62516.0,62514.0,0.07991543]
[1728842857737,0.079992,62515.0,62514.0,0.07991543]
[1728842858232,0.11240058,62516.0,62513.0,0.079995]
[1728842858233,0.079994,62514.0,62513.0,0.079995]
[1728842859932,0.093994,62514.0,62513.0,0.079995]
[1728842860624,0.33718,62514.0,62513.0,0.080995]
[1728842861029,0.2880742,62514.0,62513.0,0.080995]
[1728842864133,0.1780742,62514.0,62513.0,0.190995]
[1728842864530,0.14718599,62514.0,62513.0,0.190995]
[1728842867231,0.20955141,62514.0,62513.0,0.190995]
[1728842867432,0.17037434,62514.0,62513.0,0.190995]
[1728842868034,0.28956033,62514.0,62513.0,0.190995]
[1728842868636,0.014,62514.0,62513.0,0.190995]
[1728842868840,0.028,62514.0,62513.0,0.190995]
[1728842873646,0.028,62514.0,62513.0,0.080995]
[1728842875434,0.05890188,62514.0,62513.0,0.080995]
[1728842875634,0.14718119,62514.0,62513.0,0.080995]
[1728842878243,0.30535117,62514.0,62513.0,0.080995]
[1728842880341,0.14718119,62514.0,62513.0,0.080995]
[1728842881350,0.14718117,62514.0,62513.0,0.080995]
[1728842881652,0.14718117,62514.0,62513.0,0.001]
[1728842881653,0.25718117,62514.0,62513.0,0.001]
[1728842881856,0.49548112,62514.0,62513.0,0.001]
[1728842882158,0.33717517,62514.0,62513.0,0.001]
[1728842882655,0.33717517,62514.0,62506.0,0.0037]
[1728842882656,0.080003,62507.0,62506.0,0.0037]
[1728842882855,0.080006,62504.0,62503.0,0.3608]
[1728842883051,0.26931908,62504.0,62503.0,0.3608]
[1728842883253,0.30918717,62504.0,62503.0,0.3608]
[1728842883451,0.190006,62504.0,62503.0,0.3608]
[1728842883658,0.080006,62504.0,62503.0,0.3608]
[1728842884151,0.009,62507.0,62503.0,0.38919564]
[1728842884348,0.119,62507.0,62504.0,0.080006]
[1728842884557,0.080006,62504.0,62503.0,0.38919564]
[1728842884854,0.196006,62504.0,62503.0,0.38919564]
[1728842885158,0.203006,62504.0,62503.0,0.02939564]
[1728842885457,0.203006,62504.0,62503.0,0.001]
[1728842887057,0.197006,62504.0,62503.0,0.001]
[1728842887849,0.203006,62504.0,62503.0,0.001]
[1728842889257,0.2318049,62504.0,62503.0,0.001]
[1728842890560,0.26271716,62504.0,62503.0,0.001]
[1728842893861,1.34267716,62504.0,62503.0,0.001]
[1728842894161,0.190017,62496.0,62495.0,0.0037]
[1728842894367,0.080022,62492.0,62491.0,0.080022]
[1728842894665,0.190022,62492.0,62491.0,0.10859895]
[1728842895263,0.190022,62492.0,62491.0,0.080022]
[1728842897157,0.190022,62492.0,62491.0,0.081022]
[1728842897360,0.190022,62492.0,62491.0,0.084022]
[1728842898657,0.190022,62492.0,62491.0,0.14786522]
[1728842899166,0.0399825,62492.0,62491.0,0.14786522]
[1728842900269,0.0399825,62492.0,62491.0,0.14779998]
[1728842900761,0.1499825,62492.0,62491.0,0.14779998]
[1728842901368,0.11,62492.0,62491.0,0.14779998]
[1728842901664,0.440819,62494.0,62493.0,0.08002]
[1728842902652,0.080019,62494.0,62493.0,0.08102]
[1728842904068,0.080019,62494.0,62493.0,0.08202]
[1728842913771,0.080019,62494.0,62493.0,0.27581881]
[1728842914273,0.080019,62494.0,62493.0,0.19590338]
[1728842915865,0.080019,62494.0,62493.0,0.19595123]
[1728842917579,0.080019,62494.0,62493.0,0.19495123]
[1728842917965,0.080019,62494.0,62493.0,0.19500157]
[1728842918173,0.080019,62494.0,62493.0,0.29097969]
[1728842922583,0.3616,62496.0,62495.0,0.080018]
[1728842922784,0.3608,62496.0,62495.0,0.39997769]
[1728842923685,0.02952771,62501.0,62500.0,0.080012]
[1728842923887,0.02952771,62501.0,62500.0,0.30399357]
[1728842924080,0.3608,62504.0,62503.0,0.080008]
[1728842924281,0.3608,62504.0,62503.0,0.30398957]
[1728842924584,0.00240062,62507.0,62506.0,0.080004]
[1728842924779,0.00240062,62507.0,62506.0,0.43925339]
[1728842924985,0.00240062,62507.0,62506.0,0.43535339]
[1728842925285,0.00240062,62507.0,62506.0,0.29618557]
[1728842926088,0.01240062,62507.0,62506.0,0.29618557]
[1728842926279,0.01240062,62507.0,62506.0,0.39205105]
[1728842926778,0.02440062,62507.0,62506.0,0.39305105]
[1728842927179,0.02440062,62507.0,62506.0,0.29718557]
[1728842927794,0.18286482,62507.0,62506.0,0.183204]
[1728842928087,0.30205735,62507.0,62506.0,0.183204]
[1728842928396,0.14359315,62507.0,62506.0,0.183204]
[1728842932291,0.09448466,62507.0,62506.0,0.183204]
[1728842934086,0.28448766,62507.0,62506.0,0.001]
[1728842934283,0.47606042,62507.0,62506.0,0.001]
[1728842934487,0.33359706,62507.0,62506.0,0.001]
[1728842935997,0.21440362,62507.0,62506.0,0.001]
[1728842937290,0.21440362,62507.0,62506.0,0.06488378]
[1728842937491,0.21440362,62507.0,62506.0,0.14488778]
[1728842937692,0.10440362,62507.0,62506.0,0.14488778]
[1728842938498,0.10440362,62507.0,62506.0,0.001]
[1728842938696,0.21440362,62507.0,62506.0,0.001]
[1728842939397,0.212003,62507.0,62506.0,0.001]
[1728842939993,0.212003,62507.0,62506.0,0.081004]
[1728842941201,0.212003,62507.0,62506.0,0.14488778]
[1728842942003,0.212003,62507.0,62506.0,0.081004]
[1728842942301,0.022,62507.0,62506.0,0.14488778]
[1728842942503,0.022,62507.0,62506.0,0.081004]
[1728842942804,0.022,62507.0,62506.0,0.23886397]
[1728842943001,0.022,62507.0,62506.0,0.191004]
[1728842943601,0.022,62507.0,62506.0,0.081004]
[1728842944206,0.18787736,62508.0,62507.0,0.080003]
[1728842944391,0.18787736,62508.0,62507.0,0.75260516]
[1728842944595,0.18787736,62508.0,62507.0,1.27286072]
[1728842944804,0.0037,62512.0,62507.0,1.4626049]
[1728842945003,0.3645,62517.0,62516.0,0.079991]
[1728842945211,0.3608,62517.0,62516.0,0.079991]
[1728842947097,0.3748,62517.0,62516.0,0.080991]
[1728842947698,0.3748,62517.0,62516.0,0.081991]
[1728842948509,0.3748,62517.0,62516.0,0.12983746]
[1728842948803,0.3748,62517.0,62516.0,0.081991]
[1728842948993,0.3748,62517.0,62516.0,0.12983746]
[1728842949399,0.3748,62517.0,62516.0,0.081991]
[1728842949607,0.3748,62517.0,62516.0,0.12983746]
[1728842949608,0.014,62517.0,62516.0,0.12983746]
[1728842950008,0.014,62517.0,62516.0,0.081991]
[1728842950306,0.3608,62529.0,62523.0,0.079982]
[1728842950504,0.3608,62529.0,62528.0,0.079976]
[1728842950900,0.39169569,62529.0,62528.0,0.079976]
[1728842951300,0.50250335,62529.0,62528.0,0.079976]
[1728842951697,0.51150335,62529.0,62528.0,0.080976]
[1728842951901,0.15070335,62529.0,62528.0,0.080976]
[1728842952107,0.03989569,62529.0,62528.0,0.080976]
[1728842952311,0.11982833,62529.0,62528.0,0.080976]
[1728842952505,0.15072402,62529.0,62528.0,0.080976]
[1728842953110,0.19289083,62529.0,62528.0,0.081976]
[1728842953313,0.15372402,62529.0,62528.0,0.081976]
[1728842953819,0.15272402,62529.0,62528.0,0.081976]
[1728842954309,0.15371898,62529.0,62528.0,0.081976]
[1728842954816,0.15371898,62529.0,62528.0,0.080976]
[1728842955014,0.15371898,62529.0,62528.0,0.081976]
[1728842955216,0.04289569,62529.0,62528.0,0.081976]
[1728842955515,0.04289569,62529.0,62528.0,0.11127012]
[1728842957415,0.12286969,62529.0,62528.0,0.11127012]
[1728842957904,0.091974,62529.0,62528.0,0.11127012]
[1728842964122,0.012,62529.0,62528.0,0.11127012]
[1728842965820,0.05116329,62529.0,62528.0,1.30107012]
[1728842966025,0.08205555,62529.0,62528.0,1.30107012]
[1728842966318,0.08205555,62529.0,62528.0,1.19107012]
[1728842967111,0.08205431,62529.0,62528.0,1.19107012]
[1728842968911,0.08205431,62529.0,62528.0,1.30107012]
[1728842969813,0.13853443,62529.0,62528.0,1.30107012]
[1728842970013,0.08205431,62529.0,62528.0,1.30107012]
[1728842970720,0.08305431,62529.0,62528.0,1.30107012]
[1728842971023,0.08305431,62529.0,62528.0,1.19107012]
[1728842971219,0.08305431,62529.0,62528.0,0.11127012]
[1728842971719,0.139528,62529.0,62528.0,0.11127012]
[1728842972019,0.20958231,62529.0,62528.0,0.11127012]
[1728842972214,0.08305431,62529.0,62528.0,0.22127012]
[1728842972827,0.1396062,62529.0,62528.0,0.33279004]
[1728842974223,0.1396062,62529.0,62528.0,0.412535]
[1728842974437,0.1396062,62529.0,62528.0,0.33279004]
[1728842976221,0.1396062,62529.0,62528.0,0.33293427]
[1728842976222,0.013,62529.0,62528.0,0.33293427]
[1728842977220,0.013,62529.0,62528.0,0.081976]
[1728842977525,0.013,62529.0,62528.0,0.191976]
[1728842979322,0.013,62529.0,62528.0,0.002]
[1728842979518,0.092974,62529.0,62528.0,0.002]
[1728842981629,0.12181035,62529.0,62528.0,0.002]
[1728842982222,0.60161035,62529.0,62528.0,0.002]
[1728842982528,0.60161035,62529.0,62520.0,0.0037]
[1728842982529,0.189985,62521.0,62520.0,0.0037]
[1728842982732,0.189985,62521.0,62518.0,0.079988]
[1728842984026,0.11,62521.0,62518.0,0.079988]
[1728842984429,0.111,62521.0,62518.0,0.079988]
[1728842985129,0.11,62521.0,62518.0,0.079988]
[1728842985320,0.11,62521.0,62518.0,0.080988]
[1728842986834,0.11,62521.0,62519.0,0.079987]
[1728842987537,0.13920366,62521.0,62519.0,0.079987]
[1728842988131,0.14020366,62521.0,62519.0,0.079987]
[1728842988331,0.14020366,62521.0,62517.0,0.07985571]
[1728842988529,0.14020366,62521.0,62520.0,0.079986]
[1728842990629,0.14120366,62521.0,62520.0,0.079986]
[1728842991143,0.22118966,62521.0,62517.0,0.002]
[1728842991436,0.22118966,62521.0,62517.0,0.081989]
[1728842991635,0.22118966,62521.0,62517.0,0.079989]
[1728842991937,0.22218966,62521.0,62517.0,0.079989]
[1728842992133,0.22018966,62521.0,62517.0,0.080989]
[1728842992631,0.21918966,62521.0,62518.0,0.079988]
[1728842993338,0.21918966,62521.0,62520.0,0.06379016]
[1728842994033,0.21918966,62521.0,62519.0,0.06379016]
[1728842994429,0.079986,62520.0,62519.0,0.06379016]
[1728842994838,0.079986,62520.0,62518.0,0.080988]
[1728842994839,0.079987,62519.0,62518.0,0.001]
[1728842995134,0.154687,62519.0,62518.0,0.001]
[1728842995445,0.154687,62519.0,62517.0,0.06378129]
[1728842995446,0.079988,62518.0,62517.0,0.06378129]
[1728842995629,0.079988,62518.0,62517.0,0.0637832]
[1728842996140,0.07999,62517.0,62515.0,0.00239868]
[1728842996332,0.154687,62519.0,62518.0,0.001]
[1728842997827,0.07999,62517.0,62515.0,0.00239868]
[1728842999328,0.11,62518.0,62515.0,0.00639868]
[1728842999329,0.079991,62516.0,62515.0,0.00639868]
[1728843000129,0.079991,62516.0,62515.0,0.00939868]
[1728843001031,1.159871,62516.0,62515.0,1e-08]
[1728843001436,1.269871,62516.0,62515.0,1e-08]
[1728843004139,1.159871,62516.0,62515.0,1e-08]
[1728843005634,1.881471,62516.0,62515.0,1e-08]
[1728843007642,1.159871,62516.0,62515.0,1e-08]
[1728843007844,1.881471,62516.0,62515.0,1e-08]
[1728843008041,1.159871,62516.0,62515.0,1e-08]
[1728843008341,0.079997,62511.0,62508.0,0.0037]
[1728843008536,0.079997,62511.0,62507.0,0.0637832]
[1728843008537,0.080001,62508.0,62507.0,0.0637832]
[1728843008741,0.190001,62508.0,62507.0,0.0637832]
[1728843008949,0.080003,62507.0,62506.0,0.04787239]
[1728843009154,0.190003,62507.0,62506.0,0.04787239]
[1728843009442,0.190003,62507.0,62500.0,0.0638482]
[1728843009443,0.08001,62501.0,62500.0,0.0638482]
[1728843009644,0.4708,62501.0,62498.0,0.0638482]
[1728843009832,0.11,62499.0,62498.0,0.0638482]
[1728843010839,0.190014,62499.0,62498.0,0.080014]
[1728843011032,0.191014,62499.0,62498.0,0.092014]
[1728843011232,0.192014,62499.0,62498.0,0.103014]
[1728843011437,0.192014,62499.0,62498.0,0.1668622]
[1728843011639,0.192014,62499.0,62498.0,0.103014]
[1728843013044,0.192014,62499.0,62498.0,0.178814]
[1728843014042,0.192014,62499.0,62498.0,0.0988]
[1728843015148,0.302014,62499.0,62498.0,0.0988]
[1728843015333,0.302014,62499.0,62498.0,0.023]
[1728843016244,0.080019,62494.0,62493.0,0.0638482]
[1728843016432,0.080019,62494.0,62489.0,0.0638482]
[1728843016433,0.4708,62494.0,62489.0,0.0638482]